bitfinex/quotes_BTCUSD_20250423
["timestamp","ask_amount","ask_price","bid_price","bid_amount"]
[1745370909727,0.1057403,93132.0,93131.0,0.06]
[1745370910135,0.1087403,93132.0,93131.0,0.06]
[1745370910769,0.1057403,93132.0,93131.0,0.06]
[1745370911223,0.1087403,93132.0,93131.0,0.06]
[1745370912547,0.1057403,93132.0,93131.0,0.06]
[1745370912752,0.1077403,93132.0,93131.0,0.06]
[1745370912969,0.1057403,93132.0,93131.0,0.06]
[1745370913402,0.1067403,93132.0,93131.0,0.06]
[1745370916920,0.00243725,93132.0,93131.0,0.061]
[1745370918862,0.00243725,93132.0,93131.0,1.03492317]
[1745370919071,0.00243725,93132.0,93131.0,0.790044]
[1745370919311,0.001,93132.0,93131.0,0.790044]
[1745370919731,0.00143725,93149.0,93148.0,0.001]
[1745370919940,0.000851,93154.0,93149.0,0.21470976]
[1745370920154,0.00131817,93150.0,93147.0,0.01073571]
[1745370920371,0.00131817,93150.0,93149.0,0.001]
[1745370920790,0.00131817,93150.0,93149.0,0.01428316]
[1745370921000,0.00131817,93150.0,93149.0,0.001]
[1745370921440,0.00131817,93150.0,93149.0,0.722172]
[1745370921664,0.00131817,93150.0,93149.0,0.001]
[1745370921872,0.00131817,93150.0,93149.0,0.173148]
[1745370922115,0.00131817,93150.0,93149.0,0.22436966]
[1745370922324,0.00131817,93150.0,93149.0,0.01470666]
[1745370922797,0.00231817,93150.0,93149.0,0.0168535]
[1745370923065,0.00131817,93150.0,93149.0,0.1319295]
[1745370923269,0.00131817,93150.0,93149.0,0.01570666]
[1745370923498,0.00131817,93150.0,93149.0,0.4118025]
[1745370923710,0.00131817,93150.0,93149.0,1.03963266]
[1745370923932,0.00131817,93150.0,93149.0,0.28623866]
[1745370924144,0.00100997,93150.0,93149.0,0.24525266]
[1745370924362,0.00100997,93150.0,93149.0,0.21191866]
[1745370925216,0.00100997,93150.0,93149.0,0.21406541]
[1745370926979,0.00100997,93150.0,93149.0,0.33690903]
[1745370927230,0.001,93169.0,93168.0,0.001]
[1745370927679,0.00114012,93169.0,93168.0,0.001]
[1745370927904,0.00114012,93169.0,93168.0,0.593093]
[1745370928155,0.00114012,93169.0,93168.0,0.001]
[1745370928373,0.00114012,93169.0,93168.0,0.415681]
[1745370928600,0.00114012,93169.0,93168.0,0.94888405]
[1745370928822,0.00114012,93169.0,93168.0,1.1982699]
[1745370929662,0.00114012,93169.0,93168.0,1.1972699]
[1745370929887,0.0004254,93188.0,93176.0,0.21464754]
[1745370930093,0.0004254,93188.0,93176.0,1.2417196]
[1745370930297,0.0004254,93188.0,93176.0,1.23957354]
[1745370930969,0.0004254,93188.0,93176.0,1.24057354]
[1745370931150,0.001851,93177.0,93176.0,1.24057354]
[1745370931670,0.001851,93177.0,93176.0,1.12842354]
[1745370932248,0.001851,93177.0,93176.0,0.002]
[1745370932450,0.001851,93177.0,93176.0,0.001]
[1745370932714,0.000851,93177.0,93176.0,0.002]
[1745370932932,0.000851,93177.0,93176.0,0.003]
[1745370933343,0.000851,93177.0,93176.0,0.002]
[1745370934068,0.002851,93177.0,93176.0,0.002]
[1745370934273,0.00428825,93177.0,93176.0,0.002]
[1745370934831,0.00428825,93177.0,93176.0,0.001]
[1745370935034,0.00428825,93177.0,93176.0,0.002]
[1745370935238,0.00428825,93177.0,93176.0,0.001]
[1745370935413,0.1125913,93177.0,93176.0,0.001]
[1745370935614,0.1105913,93177.0,93176.0,0.001]
[1745370936026,0.1135913,93177.0,93176.0,0.001]
[1745370936443,0.1145913,93177.0,93176.0,0.001]
[1745370936835,0.1115913,93177.0,93176.0,0.001]
[1745370937263,0.1145913,93177.0,93176.0,0.001]
[1745370938827,0.1635913,93177.0,93176.0,0.001]
[1745370942155,0.1625913,93177.0,93167.0,0.27337524]
[1745370942424,0.10830305,93176.0,93167.0,0.27337524]
[1745370942856,0.10830305,93176.0,93162.0,0.01073399]
[1745370943075,0.10830305,93176.0,93166.0,0.27337524]
[1745370943293,0.01073249,93175.0,93166.0,0.27337524]
[1745370943503,0.10830305,93174.0,93166.0,0.27337524]
[1745370946106,0.00143725,93173.0,93166.0,0.27337524]
[1745370946282,0.10830305,93172.0,93166.0,0.27337524]
[1745370946854,0.10830305,93172.0,93171.0,0.06]
[1745370947842,0.00143725,93173.0,93172.0,0.001]
[1745370948194,0.00143725,93173.0,93171.0,0.0737284]
[1745370948404,0.10830305,93172.0,93171.0,0.0737284]
[1745370949409,0.11030305,93172.0,93171.0,0.0737284]
[1745370952009,0.1117403,93172.0,93171.0,0.0737284]
[1745370955412,0.1117403,93172.0,93171.0,0.06]
[1745370956198,0.1097403,93172.0,93171.0,0.06]
[1745370956542,0.1127403,93172.0,93171.0,0.06]
[1745370956747,0.1097403,93172.0,93171.0,0.06]
[1745370957048,0.1147403,93172.0,93171.0,0.06]
[1745370966080,0.00643725,93172.0,93171.0,0.27565906]
[1745370966356,0.00643725,93172.0,93171.0,0.061]
[1745370966572,0.00643725,93172.0,93171.0,0.06]
[1745370966771,0.00643725,93172.0,93171.0,0.061]
[1745370967376,0.00143725,93172.0,93171.0,0.061]
[1745370967840,0.00343725,93172.0,93171.0,0.061]
[1745370974280,0.1117403,93172.0,93171.0,0.06]
[1745370974492,0.32639706,93172.0,93171.0,0.06]
[1745370974690,0.37199706,93172.0,93171.0,0.06]
[1745370976229,0.1117403,93172.0,93171.0,0.06]
[1745370979226,0.32639706,93172.0,93171.0,0.06]
[1745370982112,0.37579706,93172.0,93171.0,0.06]
[1745370982998,0.37379706,93172.0,93171.0,0.06]
[1745370983405,0.38079706,93172.0,93171.0,0.061]
[1745370983856,0.51503706,93172.0,93171.0,0.061]
[1745370984239,0.51359981,93172.0,93171.0,0.05956275]
[1745370987829,0.25054305,93172.0,93171.0,0.05956275]
[1745370988402,0.008,93172.0,93171.0,0.06056275]
[1745370988640,0.008,93172.0,93171.0,0.07373338]
[1745370989219,0.001,93172.0,93171.0,0.07273338]
[1745370989427,0.005,93172.0,93171.0,0.07273338]
[1745370990402,0.001,93172.0,93171.0,0.07273338]
[1745370990600,0.003,93172.0,93171.0,0.07273338]
[1745370991051,0.002,93172.0,93171.0,0.07273338]
[1745370993365,0.002,93172.0,93171.0,0.07173338]
[1745370993570,0.11030305,93172.0,93171.0,0.07173338]
[1745370993964,0.10830305,93172.0,93171.0,0.07173338]
[1745370994140,0.11030305,93172.0,93171.0,0.07173338]
[1745370995499,0.10830305,93172.0,93171.0,0.07173338]
[1745370995905,0.52230305,93172.0,93171.0,0.07173338]
[1745370998415,0.52364005,93172.0,93171.0,0.07173338]
[1745370999534,0.52364005,93172.0,93171.0,0.07273338]
[1745370999535,0.415337,93172.0,93171.0,0.07273338]
[1745371001646,0.415337,93172.0,93171.0,0.28739244]
[1745371001857,0.4124254,93188.0,93187.0,0.21562221]
[1745371002538,0.4124254,93188.0,93187.0,0.001]
[1745371003231,0.4124254,93188.0,93187.0,0.002]
[1745371003445,0.4124254,93188.0,93187.0,0.001]
[1745371004319,0.4124254,93188.0,93185.0,0.01073134]
[1745371004541,0.4124254,93188.0,93187.0,0.001]
[1745371006521,0.4124254,93188.0,93187.0,0.21562221]
[1745371007029,0.4124254,93188.0,93187.0,0.001]
[1745371008596,0.4124254,93188.0,93186.0,0.06]
[1745371008597,0.52072845,93188.0,93186.0,0.06]
[1745371008802,0.10830305,93187.0,93186.0,0.06]
[1745371009010,0.56920305,93187.0,93186.0,0.06]
[1745371009221,0.01073145,93184.0,93171.0,0.01417063]
[1745371009428,0.01073203,93179.0,93171.0,0.001]
[1745371009638,0.10830305,93178.0,93171.0,0.001]
[1745371009859,0.21465516,93173.0,93171.0,0.001]
[1745371010084,0.10830305,93172.0,93171.0,0.001]
[1745371012726,0.21753644,93172.0,93171.0,0.002]
[1745371012967,0.21253644,93172.0,93171.0,0.002]
[1745371013167,0.21453644,93172.0,93171.0,0.002]
[1745371013374,0.21253644,93172.0,93171.0,0.002]
[1745371013755,0.21353644,93172.0,93171.0,0.002]
[1745371019631,0.21353644,93172.0,93171.0,0.21665906]
[1745371019858,0.001,93172.0,93171.0,0.21665906]
[1745371020075,0.001,93172.0,93171.0,0.93212327]
[1745371020205,0.001,93172.0,93171.0,0.92997706]
[1745371020432,0.21253644,93187.0,93184.0,0.22536027]
[1745371022111,0.21253644,93187.0,93183.0,0.01073157]
[1745371022554,0.21253644,93187.0,93184.0,0.01073145]
[1745371023220,0.21553644,93187.0,93183.0,0.01073157]
[1745371023446,0.21553644,93187.0,93184.0,0.01073145]
[1745371023891,0.21553644,93187.0,93186.0,0.001]
[1745371024109,0.21553644,93187.0,93186.0,0.00314617]
[1745371024336,0.003,93187.0,93186.0,0.001]
[1745371026170,0.0004254,93188.0,93187.0,0.21462221]
[1745371026496,0.0004254,93188.0,93187.0,0.21676799]
[1745371027109,0.0004254,93188.0,93187.0,1.34999704]
[1745371027310,0.0004254,93188.0,93187.0,1.39725126]
[1745371027474,0.001,93189.0,93188.0,0.001]
[1745371027707,0.21253644,93205.0,93188.0,0.001]
[1745371027708,0.21253644,93205.0,93204.0,0.001]
[1745371027916,0.21267648,93205.0,93204.0,0.001]
[1745371029628,0.21467648,93205.0,93204.0,0.001]
[1745371031113,0.00214004,93205.0,93204.0,0.001]
[1745371032200,0.00214004,93205.0,93204.0,0.01382355]
[1745371035489,0.00214004,93205.0,93204.0,0.01596911]
[1745371036811,0.00214004,93205.0,93204.0,0.01382355]
[1745371037522,0.00214004,93205.0,93204.0,0.01596911]
[1745371038170,0.0004249,93225.0,93208.0,0.21557385]
[1745371038402,0.00109012,93209.0,93208.0,1.3499481]
[1745371038645,0.00109012,93209.0,93208.0,1.3478029]
[1745371039779,0.0004249,93225.0,93211.0,0.2301078]
[1745371040003,0.0004249,93225.0,93211.0,1.41123685]
[1745371042034,0.0004249,93225.0,93211.0,1.400696]
[1745371042239,0.0004249,93225.0,93211.0,0.005]
[1745371042417,0.0004249,93225.0,93211.0,0.177986]
[1745371042821,0.21253644,93224.0,93211.0,0.177986]
[1745371043029,0.21253644,93224.0,93211.0,0.005]
[1745371043238,0.21253644,93224.0,93211.0,0.199539]
[1745371043438,0.21253644,93224.0,93211.0,0.003]
[1745371044531,0.21253644,93224.0,93211.0,0.00514541]
[1745371045124,0.21253644,93224.0,93211.0,0.003]
[1745371045366,0.21253644,93224.0,93211.0,0.00314541]
[1745371045599,0.21253644,93224.0,93211.0,0.001]
[1745371046675,0.21253644,93224.0,93210.0,0.21456809]
[1745371046879,0.21253644,93224.0,93211.0,0.002]
[1745371047077,0.21253644,93224.0,93211.0,0.001]
[1745371047485,0.21253644,93224.0,93211.0,0.002]
[1745371047773,0.21253644,93224.0,93211.0,0.712187]
[1745371048005,0.21253644,93224.0,93211.0,0.545391]
[1745371048174,0.21253644,93224.0,93211.0,0.65369405]
[1745371048721,0.0004249,93225.0,93211.0,0.65369405]
[1745371048933,0.0004249,93225.0,93211.0,0.70259405]
[1745371051165,0.0004249,93225.0,93214.0,0.01554085]
[1745371051368,0.0004249,93225.0,93224.0,0.21553702]
[1745371051544,0.0004249,93225.0,93224.0,0.32384007]
[1745371051729,0.0004249,93225.0,93224.0,1.34776607]
[1745371052212,0.0004249,93225.0,93224.0,0.42284702]
[1745371052423,0.0004249,93225.0,93224.0,0.20931]
[1745371052640,0.0004249,93225.0,93224.0,0.21145505]
[1745371053028,0.0004249,93225.0,93224.0,0.31761305]
[1745371053232,0.0004249,93225.0,93224.0,0.31661305]
[1745371053561,0.0004249,93225.0,93224.0,0.31761305]
[1745371053966,0.0004249,93225.0,93224.0,0.31661305]
[1745371056778,0.0004249,93225.0,93224.0,0.53115007]
[1745371057591,0.0004249,93225.0,93224.0,0.57925007]
[1745371058454,0.0489253,93254.0,93232.0,0.21451862]
[1745371058665,0.0489253,93254.0,93232.0,1.34889239]
[1745371058880,0.0489253,93254.0,93232.0,1.08940167]
[1745371061880,0.0489253,93254.0,93232.0,0.97381867]
[1745371062091,0.01072374,93251.0,93232.0,0.001]
[1745371062317,0.05722363,93252.0,93232.0,0.001]
[1745371062533,0.0465,93252.0,93232.0,0.001]
[1745371063437,0.0596487,93254.0,93231.0,0.061]
[1745371063438,0.0464,93232.0,93231.0,0.061]
[1745371063639,0.0464,93232.0,93231.0,0.06]
[1745371064818,0.0484,93232.0,93231.0,0.061]
[1745371065427,0.0484,93232.0,93231.0,0.06]
[1745371065641,0.0484,93232.0,93231.0,0.061]
[1745371066912,0.0369301,93232.0,93231.0,0.061]
[1745371069369,0.24946654,93232.0,93231.0,0.061]
[1745371069544,0.24955167,93232.0,93231.0,0.27552092]
[1745371069754,0.21462157,93232.0,93231.0,0.27552092]
[1745371069927,0.21462157,93232.0,93231.0,0.061]
[1745371071565,0.21462157,93232.0,93231.0,0.27552092]
[1745371077342,0.21462157,93232.0,93231.0,0.061]
[1745371077779,0.32292462,93232.0,93231.0,0.06]
[1745371079120,0.32092462,93232.0,93231.0,0.06]
[1745371079371,0.32492462,93232.0,93231.0,0.06]
[1745371083851,0.54044324,93232.0,93231.0,0.06]
[1745371084065,0.58554324,93232.0,93231.0,0.06]
[1745371084291,0.01072639,93228.0,93220.0,0.27337524]
[1745371084501,0.10830305,93227.0,93220.0,0.27337524]
[1745371085108,0.01072662,93226.0,93220.0,0.27337524]
[1745371085255,0.10830305,93225.0,93220.0,0.27337524]
[1745371085471,0.10830305,93225.0,93217.0,0.001]
[1745371085670,0.21362157,93232.0,93231.0,0.21452092]
[1745371085869,0.21362157,93232.0,93231.0,0.21552092]
[1745371085870,0.00108513,93232.0,93231.0,0.21552092]
[1745371086490,0.00108513,93232.0,93231.0,0.001]
[1745371086707,0.00108513,93232.0,93231.0,0.21552092]
[1745371086905,0.00108513,93232.0,93231.0,0.001]
[1745371087190,0.00108513,93232.0,93227.0,0.001]
[1745371087398,0.00108513,93232.0,93229.0,0.001]
[1745371088334,0.00208513,93232.0,93229.0,0.001]
[1745371088676,0.00108513,93232.0,93229.0,0.001]
[1745371089103,0.00308513,93232.0,93229.0,0.001]
[1745371089536,0.00308513,93232.0,93229.0,0.21552393]
[1745371089750,0.00308513,93232.0,93229.0,0.2262502]
[1745371090035,0.21253644,93231.0,93229.0,0.2262502]
[1745371090492,0.21253644,93231.0,93230.0,0.001]
[1745371091666,0.21553644,93231.0,93230.0,0.001]
[1745371092273,0.21853644,93231.0,93230.0,0.001]
[1745371093055,0.21853644,93231.0,93229.0,0.2252502]
[1745371093233,0.21853644,93231.0,93230.0,0.001]
[1745371094024,0.21253644,93231.0,93230.0,0.001]
[1745371094673,0.21553644,93231.0,93230.0,0.001]
[1745371095092,0.21253644,93231.0,93230.0,0.001]
[1745371095296,0.21553644,93231.0,93230.0,0.001]
[1745371095501,0.003,93231.0,93230.0,0.001]
[1745371095700,0.003,93231.0,93230.0,0.00314496]
[1745371099817,0.003,93231.0,93230.0,0.001]
[1745371101145,0.003,93231.0,93228.0,0.001]
[1745371101351,0.21553644,93231.0,93228.0,0.001]
[1745371102294,0.0465,93230.0,93226.0,0.06]
[1745371102516,0.15480305,93230.0,93226.0,0.06]
[1745371102771,0.21253644,93229.0,93226.0,0.06]
[1745371102987,0.10830305,93228.0,93226.0,0.06]
[1745371104665,0.11030305,93228.0,93226.0,0.06]
[1745371105844,0.002,93228.0,93226.0,0.06]
[1745371107381,0.21253644,93227.0,93226.0,0.06]
[1745371108440,0.21253644,93227.0,93226.0,0.27553242]
[1745371108697,0.00108513,93232.0,93231.0,0.21552092]
[1745371108940,0.00108513,93232.0,93231.0,0.001]
[1745371109406,0.00108513,93232.0,93228.0,0.001]
[1745371109937,0.15430305,93231.0,93226.0,0.061]
[1745371110779,0.15430305,93231.0,93226.0,0.06]
[1745371111452,0.15630305,93231.0,93226.0,0.06]
[1745371111668,0.21453008,93228.0,93226.0,0.06]
[1745371111884,0.10830305,93227.0,93226.0,0.06]
[1745371113266,0.10930305,93227.0,93226.0,0.06]
[1745371113848,0.01072754,93218.0,93210.0,0.27337524]
[1745371114077,0.32083949,93217.0,93210.0,0.27337524]
[1745371114258,0.046,93216.0,93210.0,0.27337524]
[1745371114431,0.10830305,93215.0,93210.0,0.27337524]
[1745371114659,0.22326444,93214.0,93210.0,0.27337524]
[1745371114869,0.21457467,93208.0,93204.0,0.01282355]
[1745371115019,0.22530738,93206.0,93200.0,0.27337524]
[1745371115222,0.10830305,93205.0,93200.0,0.27337524]
[1745371116083,0.10830305,93205.0,93200.0,0.2854311]
[1745371116770,0.10830305,93205.0,93200.0,0.27337524]
[1745371117243,0.01072972,93199.0,93193.0,0.0008492]
[1745371117450,0.0462,93204.0,93193.0,0.0008492]
[1745371117451,0.32083949,93198.0,93193.0,0.0008492]
[1745371118599,0.32083949,93198.0,93193.0,0.00193932]
[1745371121272,0.21460609,93194.0,93193.0,0.00193932]
[1745371121478,0.37130914,93194.0,93193.0,0.00193932]
[1745371121685,0.59838643,93194.0,93193.0,0.00193932]
[1745371122147,0.64458643,93194.0,93193.0,0.00193932]
[1745371122378,0.21464294,93178.0,93166.0,0.01281221]
[1745371122604,0.21465676,93172.0,93166.0,0.0008496]
[1745371122831,0.22920913,93167.0,93166.0,0.0008496]
[1745371123055,0.2754437,93152.0,93151.0,0.001]
[1745371123291,0.38374675,93152.0,93151.0,0.001]
[1745371123729,0.38374675,93152.0,93151.0,0.00114012]
[1745371125257,0.38774675,93152.0,93151.0,0.00114012]
[1745371126116,0.39559261,93152.0,93151.0,0.00114012]
[1745371126326,0.48023778,93152.0,93151.0,0.00114012]
[1745371126535,0.39159261,93152.0,93151.0,0.00114012]
[1745371126969,0.39659261,93152.0,93151.0,0.00214012]
[1745371127756,0.21473051,93140.0,93137.0,0.0008492]
[1745371127909,0.52979216,93140.0,93137.0,0.0008492]
[1745371128128,0.64899216,93140.0,93137.0,0.0008492]
[1745371129009,0.66353301,93140.0,93137.0,0.0008492]
[1745371129997,0.66553301,93140.0,93137.0,0.0008492]
[1745371130595,0.66353301,93140.0,93137.0,0.0008492]
[1745371131048,0.66753301,93140.0,93137.0,0.0008492]
[1745371131654,0.43826165,93140.0,93137.0,0.0008492]
[1745371132495,0.31906165,93140.0,93137.0,0.0008492]
[1745371137180,0.3336025,93140.0,93137.0,0.0008492]
[1745371137607,0.4265025,93140.0,93137.0,0.0008492]
[1745371138933,0.01073871,93121.0,93113.0,0.0008492]
[1745371139062,0.30981505,93120.0,93113.0,0.0008492]
[1745371140111,0.30981505,93120.0,93113.0,0.00331637]
[1745371140303,0.30981505,93120.0,93113.0,0.00131637]
[1745371140880,0.30981505,93120.0,93113.0,0.01363172]
[1745371141084,0.30981505,93120.0,93113.0,0.00131637]
[1745371142200,0.01073906,93118.0,93113.0,0.00131637]
[1745371142407,0.10830305,93117.0,93113.0,0.00131637]
[1745371142629,0.201512,93116.0,93113.0,0.00131637]
[1745371142837,0.10830305,93115.0,93113.0,0.00131637]
[1745371143048,0.30981505,93115.0,93113.0,0.00131637]
[1745371143269,0.21479047,93114.0,93113.0,0.00131637]
[1745371143482,0.53914637,93114.0,93113.0,0.00131637]
[1745371144178,0.30981505,93114.0,93113.0,0.00131637]
[1745371144554,0.42909505,93114.0,93113.0,0.00131637]
[1745371144760,0.201512,93114.0,93113.0,0.00231637]
[1745371144969,0.201512,93114.0,93113.0,0.00131637]
[1745371145134,0.31481505,93114.0,93113.0,0.00231637]
[1745371145334,0.11330305,93114.0,93113.0,0.05051637]
[1745371145564,0.01073122,93186.0,93159.0,0.001]
[1745371145763,0.01073122,93186.0,93156.0,0.01073468]
[1745371145764,0.10830305,93185.0,93170.0,0.27337524]
[1745371146175,0.10830305,93185.0,93182.0,0.01073168]
[1745371146374,0.001,93189.0,93183.0,0.01073157]
[1745371146576,0.10830305,93188.0,93181.0,0.21463338]
[1745371146775,0.10830305,93188.0,93179.0,0.27437524]
[1745371146975,0.1084132,93188.0,93181.0,0.21463518]
[1745371147336,0.006,93185.0,93182.0,0.001]
[1745371147545,0.006,93185.0,93179.0,0.21563965]
[1745371147754,0.006,93185.0,93179.0,0.001]
[1745371147954,0.006,93185.0,93179.0,0.21564013]
[1745371148156,0.1134132,93188.0,93179.0,0.21564013]
[1745371148557,0.006,93185.0,93182.0,0.001]
[1745371149512,0.1084132,93188.0,93179.0,0.001]
[1745371149921,0.002,93185.0,93179.0,0.001]
[1745371150333,0.002,93185.0,93184.0,0.001]
[1745371150548,0.004,93185.0,93184.0,0.001]
[1745371150765,0.002,93185.0,93184.0,0.001]
[1745371150975,0.004,93185.0,93184.0,0.001]
[1745371151420,0.002,93185.0,93184.0,0.001]
[1745371152800,0.002,93185.0,93184.0,0.003]
[1745371153008,0.00011015,93188.0,93185.0,0.22535815]
[1745371154343,0.00011015,93188.0,93185.0,0.22494225]
[1745371155986,0.00011015,93188.0,93185.0,0.22794225]
[1745371156398,0.00011015,93188.0,93185.0,0.22994225]
[1745371156609,0.00011015,93188.0,93186.0,0.001]
[1745371158930,0.00011015,93188.0,93186.0,0.002]
[1745371160186,0.104712,93187.0,93186.0,0.002]
[1745371160405,0.104712,93187.0,93186.0,0.001]
[1745371160809,0.104712,93187.0,93186.0,0.21562451]
[1745371161009,0.104712,93187.0,93186.0,0.001]
[1745371161220,0.104712,93187.0,93186.0,0.21562451]
[1745371161575,0.00011015,93188.0,93187.0,0.001]
[1745371161777,0.104712,93203.0,93187.0,1.13537481]
[1745371161980,0.104712,93203.0,93188.0,0.81063195]
[1745371162195,0.104712,93203.0,93189.0,0.86173876]
[1745371162416,0.104712,93203.0,93189.0,0.96789605]
[1745371162773,0.104712,93203.0,93189.0,0.61793105]
[1745371163322,0.0472,93221.0,93189.0,0.61793105]
[1745371163859,0.0472,93221.0,93189.0,0.62093105]
[1745371165290,0.0472,93221.0,93189.0,0.35963205]
[1745371165892,0.0472,93221.0,93189.0,0.36063205]
[1745371166092,0.00085,93223.0,93193.0,0.001]
[1745371166469,0.00085,93223.0,93193.0,0.11144863]
[1745371166644,0.00085,93223.0,93193.0,1.13537463]
[1745371166872,0.00085,93223.0,93193.0,1.01823305]
[1745371167082,0.00085,93223.0,93193.0,0.85052505]
[1745371167291,0.00085,93223.0,93193.0,0.82993105]
[1745371167488,0.00085,93223.0,93193.0,0.83193105]
[1745371168196,0.00085,93223.0,93193.0,0.67518805]
[1745371168556,0.00085,93223.0,93193.0,0.57422705]
[1745371168953,0.21456035,93214.0,93193.0,0.47542705]
[1745371169136,0.01072765,93217.0,93193.0,0.003]
[1745371169137,0.01072823,93212.0,93193.0,0.003]
[1745371169336,0.21458209,93205.0,93193.0,0.003]
[1745371169548,0.26178661,93203.0,93193.0,0.003]
[1745371169746,0.01072972,93199.0,93193.0,0.003]
[1745371170159,0.0964123,93202.0,93193.0,0.001]
[1745371170397,0.01072961,93200.0,93193.0,0.003]
[1745371170623,0.0964123,93202.0,93193.0,0.003]
[1745371170910,0.05792926,93203.0,93193.0,0.003]
[1745371171134,0.001,93194.0,93193.0,0.27612155]
[1745371171337,0.001,93194.0,93193.0,0.003]
[1745371172335,0.01072949,93201.0,93193.0,0.001]
[1745371172544,0.11903254,93201.0,93193.0,0.001]
[1745371173139,0.001,93194.0,93193.0,0.001]
[1745371173367,0.11903254,93201.0,93193.0,0.001]
[1745371173766,0.12003254,93201.0,93193.0,0.001]
[1745371173992,0.11903254,93201.0,93193.0,0.001]
[1745371174201,0.001,93194.0,93193.0,0.001]
[1745371175488,0.10830305,93201.0,93193.0,0.001]
[1745371175787,0.10930305,93201.0,93194.0,0.001]
[1745371176194,0.01072961,93200.0,93194.0,0.001]
[1745371177336,0.104712,93199.0,93194.0,0.001]
[1745371178169,0.01172961,93200.0,93194.0,0.001]
[1745371178779,0.001,93200.0,93199.0,0.001]
[1745371179213,0.001,93209.0,93208.0,0.001]
[1745371180215,0.001,93209.0,93208.0,0.01269293]
[1745371180598,0.002,93209.0,93208.0,0.01269293]
[1745371180794,0.002,93209.0,93196.0,0.21459981]
[1745371180795,0.01272857,93209.0,93203.0,0.001]
[1745371181002,0.001,93209.0,93204.0,0.001]
[1745371181231,0.002,93209.0,93208.0,0.001]
[1745371185187,0.002,93209.0,93206.0,0.001]
[1745371185452,0.002,93209.0,93203.0,0.001]
[1745371185772,0.11030305,93209.0,93202.0,0.01267274]
[1745371186094,0.10930305,93209.0,93202.0,0.01267274]
[1745371186290,0.11030305,93209.0,93202.0,0.01267274]
[1745371186490,0.10930305,93209.0,93202.0,0.01267274]
[1745371187418,0.10130305,93209.0,93202.0,0.01267274]
[1745371188270,0.001,93209.0,93202.0,0.01267274]
[1745371188477,0.001,93209.0,93208.0,0.001]
[1745371189280,0.11916,93214.0,93208.0,0.001]
[1745371189281,0.01072834,93211.0,93208.0,0.001]
[1745371189523,0.01072823,93212.0,93203.0,0.001]
[1745371189719,0.01072811,93213.0,93209.0,0.001]
[1745371189879,0.01072811,93213.0,93199.0,0.27312155]
[1745371189880,0.10830305,93211.0,93201.0,0.001]
[1745371190079,0.02002805,93210.0,93201.0,0.001]
[1745371190286,0.10830305,93209.0,93201.0,0.001]
[1745371190567,0.10930305,93209.0,93201.0,0.001]
[1745371190719,0.16060305,93209.0,93208.0,0.001]
[1745371191128,0.0107288,93207.0,93201.0,0.01163928]
[1745371191325,0.17133162,93209.0,93201.0,0.002]
[1745371191501,0.01072869,93208.0,93201.0,0.002]
[1745371191703,0.11903174,93208.0,93201.0,0.002]
[1745371191887,0.11903174,93208.0,93201.0,0.001]
[1745371192088,0.11803174,93208.0,93201.0,0.001]
[1745371192294,0.10830305,93208.0,93201.0,0.001]
[1745371192968,0.01072892,93206.0,93200.0,0.001]
[1745371193178,0.01072892,93206.0,93201.0,0.001]
[1745371193383,0.01072892,93206.0,93196.0,0.28501514]
[1745371193792,0.01072892,93206.0,93204.0,0.06]
[1745371194353,0.10830305,93205.0,93204.0,0.06]
[1745371194869,0.11832214,93205.0,93204.0,0.06]
[1745371195065,0.11832214,93205.0,93204.0,0.061]
[1745371196257,0.1383627,93205.0,93204.0,0.061]
[1745371196449,0.1393627,93205.0,93204.0,0.061]
[1745371196652,0.1393627,93205.0,93204.0,0.06]
[1745371197102,0.1453627,93205.0,93204.0,0.061]
[1745371197917,0.03705965,93205.0,93204.0,0.061]
[1745371198143,0.1453627,93205.0,93204.0,0.061]
[1745371198293,0.12532214,93205.0,93204.0,0.061]
[1745371199488,0.01701909,93205.0,93204.0,0.061]
[1745371199811,0.007,93205.0,93204.0,0.061]
[1745371201872,0.11530305,93205.0,93204.0,0.061]
[1745371202858,0.1228244,93205.0,93204.0,0.061]
[1745371205842,0.32988381,93205.0,93204.0,0.061]
[1745371206818,0.49433666,93205.0,93204.0,0.061]
[1745371206995,0.01073249,93175.0,93165.0,0.0004246]
[1745371207194,0.26909684,93174.0,93171.0,0.001]
[1745371207556,0.26909684,93174.0,93166.0,0.00011015]
[1745371207557,0.21466828,93167.0,93166.0,0.00011015]
[1745371207762,0.01073318,93169.0,93166.0,0.00011015]
[1745371208125,0.10730305,93168.0,93166.0,0.00011015]
[1745371209357,0.0452,93167.0,93166.0,0.00011015]
[1745371209604,0.19721505,93167.0,93166.0,0.00011015]
[1745371209918,0.2117559,93167.0,93166.0,0.00011015]
[1745371210541,0.2167559,93167.0,93166.0,0.00011015]
[1745371211018,0.2604559,93167.0,93166.0,0.00011015]
[1745371211227,0.23994495,93166.0,93130.0,0.27312155]
[1745371211450,0.1228439,93164.0,93140.0,0.27312155]
[1745371211950,0.1228439,93164.0,93129.0,0.001]
[1745371211951,0.47035037,93164.0,93130.0,0.27312155]
[1745371212209,0.47035037,93164.0,93118.0,0.001]
[1745371212210,0.01073721,93134.0,93118.0,0.001]
[1745371212427,0.21474895,93132.0,93123.0,0.001]
[1745371212640,0.323052,93132.0,93123.0,0.001]
[1745371213061,0.322052,93132.0,93123.0,0.001]
[1745371213266,0.10830305,93132.0,93123.0,0.001]
[1745371213478,0.1609825,93133.0,93129.0,0.001]
[1745371213679,0.002,93132.0,93131.0,0.00146717]
[1745371214295,0.009,93132.0,93131.0,0.00146717]
[1745371214756,0.007,93132.0,93131.0,0.00246717]
[1745371215674,0.1609825,93133.0,93131.0,0.00246717]
[1745371215901,0.1609825,93133.0,93132.0,0.001]
[1745371216321,0.26928555,93133.0,93131.0,0.00246717]
[1745371216553,0.3649145,93132.0,93131.0,0.00146717]
[1745371216876,0.15016555,93132.0,93131.0,0.00146717]
[1745371218833,0.15016555,93132.0,93131.0,0.00246717]
[1745371218834,0.15416555,93132.0,93131.0,0.00246717]
[1745371219620,0.15016555,93132.0,93131.0,0.00146717]